bitfinex/quotes_SOLUSD_20260125
["timestamp","ask_amount","ask_price","bid_price","bid_amount"]
[1769325820151,0.1,126.54,126.53,0.24137698]
[1769325820649,0.1,126.54,126.53,2.38114565]
[1769325820848,0.1,126.54,126.53,2.13976867]
[1769325823548,0.1,126.54,126.52,2.38114565]
[1769325825546,0.1,126.54,126.53,2.13976867]
[1769325826058,0.1,126.54,126.52,2.38114565]
[1769325831663,0.93299376,126.54,126.52,2.13976867]
[1769325832966,0.93299376,126.54,126.51,2.13976867]
[1769325833261,0.93299376,126.54,126.51,2.38749626]
[1769325839271,0.93299376,126.54,126.52,2.13976867]
[1769325841947,0.93299376,126.54,126.53,2.13976867]
[1769325846270,0.93299376,126.54,126.51,8.15723726]
[1769325846475,0.93299376,126.54,126.52,2.13976867]
[1769325857086,0.93299376,126.54,126.52,2.13945902]
[1769325881614,0.93299376,126.54,126.52,2.40472356]
[1769325882614,0.1,126.56,126.53,0.16551477]
[1769325882615,0.90227932,126.56,126.53,0.16551477]
[1769325882784,0.90227932,126.56,126.52,2.30497379]
[1769325883110,0.80227932,126.55,126.5,0.16599132]
[1769325883410,0.80227932,126.55,126.51,2.13945902]
[1769325886503,0.80227932,126.55,126.51,2.3068592]
[1769325890511,0.80227932,126.55,126.51,0.16740018]
[1769325890694,0.80227932,126.55,126.51,2.3068592]
[1769325899940,0.80227932,126.55,126.51,0.16740018]
[1769325900147,0.80227932,126.55,126.52,2.13945902]
[1769325900359,0.80227932,126.55,126.51,2.31278552]
[1769325900553,0.80227932,126.55,126.51,0.1733265]
[1769325900842,0.80227932,126.55,126.51,2.31278552]
[1769325903249,0.80227932,126.55,126.52,2.13945902]
[1769325905547,0.91678383,126.56,126.53,2.31505476]
[1769325907145,0.91678383,126.56,126.53,2.13945902]
[1769325908345,0.91678383,126.56,126.54,2.13945902]
[1769325908549,0.91678383,126.56,126.53,2.31612671]
[1769325912453,0.91678383,126.56,126.54,2.13945902]
[1769325914554,0.91678383,126.56,126.53,2.31612671]
[1769325916750,0.1,126.56,126.54,0.17966526]
[1769325916956,0.9076038,126.56,126.54,0.17966526]
[1769325917434,0.9076038,126.56,126.53,2.31911059]
[1769325926258,0.5586038,126.56,126.53,2.31911059]
[1769325932063,0.5586038,126.56,126.53,2.13913628]
[1769325932970,0.5586038,126.56,126.53,2.57726307]
[1769325947881,0.5586038,126.56,126.54,2.13913628]
[1769325948178,0.84979524,126.57,126.54,2.58795859]
[1769325948780,0.84979524,126.57,126.54,2.13913628]
[1769325952685,0.84979524,126.57,126.55,2.13913628]
[1769325953875,0.84979524,126.57,126.54,2.5826404]
[1769325955990,0.84979524,126.57,126.54,0.44350412]
[1769325957089,0.84979524,126.57,126.53,2.56676665]
[1769325968598,0.84979524,126.57,126.53,0.42763037]
[1769325973896,0.84979524,126.57,126.49,24.09137682]
[1769325974081,0.79948814,126.56,126.51,2.51416068]
[1769325974286,0.79948814,126.55,126.51,2.51416068]
[1769325976404,0.79948814,126.55,126.52,2.13913628]
[1769325979113,0.79948814,126.55,126.52,2.13982708]
[1769325980717,0.79948814,126.55,126.51,2.51485148]
[1769325982602,0.79948814,126.55,126.52,2.13982708]
[1769325984904,0.79948814,126.55,126.52,2.489315]
[1769325992926,0.79948814,126.55,126.52,0.34948792]
[1769326023064,0.79948814,126.55,126.51,0.27970813]
[1769326023951,2.13982708,126.55,126.51,0.27970813]
[1769326024164,0.76669097,126.54,126.51,0.27970813]
[1769326027976,0.76669097,126.54,126.51,2.41953521]
[1769326028992,0.76669097,126.54,126.51,0.27970813]
[1769326029156,0.76669097,126.54,126.51,2.41953521]
[1769326034365,0.76669097,126.54,126.51,0.27970813]
[1769326034569,0.76669097,126.54,126.51,2.41953521]
[1769326037076,0.76669097,126.54,126.5,2.40062488]
[1769326040879,0.76669097,126.54,126.5,2.40096824]
[1769326044889,0.76669097,126.54,126.51,2.14017044]
[1769326045260,0.76669097,126.54,126.51,2.3921388]
[1769326073001,0.75100172,126.55,126.52,0.22603264]
[1769326073602,0.75100172,126.55,126.52,2.36620308]
[1769326075315,35.65100172,126.56,126.53,0.22454131]
[1769326075520,0.75100172,126.56,126.53,2.36471175]
[1769326076114,0.75100172,126.56,126.53,2.14017044]
[1769326077727,0.75100172,126.56,126.52,0.2238073]
[1769326077910,0.75100172,126.56,126.53,2.14017044]
[1769326081511,0.75100172,126.57,126.55,0.22026503]
[1769326081700,0.75100172,126.57,126.55,2.36043547]
[1769326081900,0.75100172,126.57,126.54,2.36043547]
[1769326087235,0.81287705,126.58,126.56,2.14017044]
[1769326088097,0.81287705,126.58,126.55,2.35581097]
[1769326088303,0.81287705,126.58,126.56,0.21501499]
[1769326090305,0.81287705,126.58,126.56,2.35518543]
[1769326091235,0.81287705,126.58,126.56,2.14017044]
[1769326096138,0.81287705,126.58,126.55,2.35332573]
[1769326101541,0.81287705,126.58,126.56,2.14017044]
[1769326102949,0.81287705,126.58,126.56,2.13842269]
[1769326113354,0.81287705,126.58,126.56,2.33883971]
[1769326114054,0.1,126.58,126.56,2.33883971]
[1769326115123,0.82558356,126.58,126.56,2.13842269]
[1769326133874,0.82558356,126.58,126.55,2.33792688]
[1769326136782,0.82558356,126.58,126.56,2.13842269]
[1769326149095,0.82558356,126.58,126.55,2.33792688]
[1769326152187,0.82558356,126.58,126.55,0.19950419]
[1769326154197,0.82558356,126.58,126.55,2.33792688]
[1769326161803,0.82558356,126.58,126.56,2.13842269]
[1769326162708,0.82558356,126.58,126.56,1.13842269]
[1769326165008,0.82558356,126.58,126.56,2.13814954]
[1769326169915,0.82558356,126.58,126.56,2.28040271]
[1769326170512,0.82558356,126.58,126.56,0.14225317]
[1769326170916,0.82558356,126.58,126.55,2.27946369]
[1769326171521,0.82558356,126.58,126.55,0.14131415]
[1769326171698,0.82558356,126.58,126.55,2.27946369]
[1769326174209,0.82558356,126.58,126.56,2.13814954]
[1769326176498,0.82558356,126.58,126.55,2.27946369]
[1769326184923,0.82558356,126.58,126.54,21.2348615]
[1769326186007,0.82558356,126.58,126.55,0.12768452]
[1769326191318,0.82558356,126.58,126.55,2.26583406]
[1769326199138,0.82558356,126.58,126.55,0.12768452]
[1769326199315,0.82558356,126.58,126.54,2.25647555]
[1769326200751,0.72621889,126.57,126.53,23.71447768]
[1769326201039,0.72621889,126.56,126.51,38.34058918]
[1769326201240,0.72621889,126.55,126.52,3.16218032]
[1769326201430,0.72621889,126.55,126.51,7.90445154]
[1769326201826,0.72621889,126.55,126.51,15.90461564]
[1769326202214,0.72621889,126.55,126.51,18.15913477]
[1769326206337,0.72621889,126.55,126.51,16.02098523]
[1769326208139,0.72621889,126.55,126.52,0.1120643]
[1769326208440,0.72621889,126.55,126.51,8.1122284]
[1769326210227,0.72621889,126.55,126.51,10.25037794]
[1769326211418,0.72621889,126.55,126.51,8.1122284]
[1769326211615,0.69905843,126.54,126.51,8.0001641]
[1769326211822,0.69905843,126.52,126.49,0.11031308]
[1769326212527,0.69905843,126.52,126.49,10.15025243]
[1769326215441,0.69905843,126.52,126.49,7.90178981]
[1769326215648,0.69905843,126.52,126.49,10.03993935]
[1769326216923,0.69905843,126.52,126.49,10.14695031]
[1769326217446,0.69905843,126.52,126.49,2.2451605]
[1769326217749,0.69905843,126.52,126.5,10.03979529]
[1769326220628,0.69905843,126.52,126.5,10.14473121]
[1769326224936,0.69905843,126.52,126.48,7.9061513]
[1769326224937,0.69905843,126.52,126.49,2.13814954]
[1769326225526,0.69905843,126.52,126.49,2.24063479]
[1769326226926,0.69905843,126.52,126.49,2.24278061]
[1769326234343,0.69905843,126.52,126.49,0.10248525]
[1769326236275,0.69905843,126.52,126.48,18.04561476]
[1769326236746,0.69905843,126.52,126.48,17.94850176]
[1769326236951,0.69905843,126.52,126.49,0.097113]
[1769326238963,0.69905843,126.52,126.48,7.9020551]
[1769326239278,0.67180609,126.49,126.45,10.14432757]
[1769326239437,0.67180609,126.49,126.46,2.23617843]
[1769326240562,0.67180609,126.49,126.47,2.14029536]
[1769326241852,0.67180609,126.49,126.46,2.23617843]
[1769326242464,0.67180609,126.49,126.46,0.09588307]
[1769326242765,0.67180609,126.49,126.46,2.23617843]
[1769326245650,0.67180609,126.49,126.45,10.04244167]
[1769326245853,0.67180609,126.49,126.45,2.14029536]
[1769326246052,0.67180609,126.49,126.45,2.23345483]
[1769326252073,0.67180609,126.49,126.46,2.14029536]
[1769326253774,0.67180609,126.49,126.45,2.23345483]
[1769326256693,0.67180609,126.49,126.45,0.09315947]
[1769326257280,0.67180609,126.49,126.45,2.23345483]
[1769326263778,0.67180609,126.49,126.45,0.09315947]
[1769326265182,0.67180609,126.49,126.45,2.23345483]
[1769326270402,0.66393965,126.5,126.47,2.20541956]
[1769326270568,0.66393965,126.5,126.48,2.14029536]
[1769326271505,0.66393965,126.5,126.47,2.20541956]
[1769326272411,0.66393965,126.5,126.46,32.2505638]
[1769326277300,0.66393965,126.5,126.47,2.14029536]
[1769326284318,0.66393965,126.5,126.47,2.18998125]
[1769326287023,0.66393965,126.5,126.47,2.19078477]
[1769326291931,0.66393965,126.5,126.48,2.14109888]
[1769326298660,0.67730173,126.52,126.49,2.17777951]
[1769326298804,0.67730173,126.53,126.51,2.14109888]
[1769326301622,0.67730173,126.53,126.5,2.17777951]
[1769326303341,0.67730173,126.52,126.48,2.17391755]
[1769326303728,0.67730173,126.52,126.48,10.07552475]
[1769326310642,0.67730173,126.52,126.49,2.14109888]
[1769326311642,0.67730173,126.52,126.48,7.93442587]
[1769326311852,0.67730173,126.52,126.48,2.14109888]
[1769326327248,0.67730173,126.52,126.49,2.14109888]
[1769326342144,0.67730173,126.52,126.48,2.14109888]
[1769326344963,0.66393965,126.53,126.49,2.14109888]
[1769326345649,0.66393965,126.53,126.5,2.14109888]
[1769326346967,0.66393965,126.53,126.49,2.14109888]
[1769326348373,0.66393965,126.53,126.5,2.14109888]
[1769326348671,0.66393965,126.53,126.51,2.14109888]
[1769326348870,0.66393965,126.53,126.51,2.13995502]
[1769326351972,0.66393965,126.53,126.5,2.13995502]
[1769326353479,0.66393965,126.53,126.49,2.13995502]
[1769326368782,0.66393965,126.53,126.5,2.13995502]
[1769326371173,0.66393965,126.53,126.49,2.13995502]
[1769326371375,0.66393965,126.53,126.5,2.13995502]
[1769326374571,0.66393965,126.53,126.49,2.13995502]
[1769326383580,0.66393965,126.55,126.51,2.13995502]
[1769326391007,0.66393965,126.55,126.52,2.13995502]
[1769326394226,0.66393965,126.55,126.51,2.13995502]
[1769326408944,0.66393965,126.55,126.51,2.13990337]
[1769326428758,0.66393965,126.55,126.5,2.13990337]
[1769326437268,0.66393965,126.55,126.5,10.04502217]
[1769326439046,0.66393965,126.55,126.51,2.13990337]
[1769326442068,0.66393965,126.54,126.51,2.13990337]
[1769326443268,0.66393965,126.54,126.48,7.90604917]
[1769326443568,0.66393965,126.54,126.5,2.13990337]
[1769326443766,2.13990337,126.54,126.49,2.13990337]
[1769326443974,0.66393965,126.53,126.49,2.13990337]
[1769326451443,0.66393965,126.53,126.48,10.04595254]
[1769326451648,0.66393965,126.52,126.48,2.13990337]
[1769326451847,0.66393965,126.52,126.47,37.94845198]
[1769326452474,0.66393965,126.51,126.47,37.94845198]
[1769326457492,0.66393965,126.51,126.48,2.13990337]
[1769326459490,0.66393965,126.51,126.47,2.13990337]
[1769326463281,0.66393965,126.51,126.48,2.13990337]
[1769326468099,0.66393965,126.51,126.44,69.63318469]
[1769326468100,0.66393965,126.51,126.47,2.13990337]
[1769326468298,0.66393965,126.51,126.48,2.13990337]
[1769326468933,0.66393965,126.51,126.48,2.14103012]
[1769326471588,0.66393965,126.51,126.47,2.14103012]
[1769326484110,0.66393965,126.51,126.48,2.14103012]
[1769326502534,0.66393965,126.51,126.47,2.14103012]
[1769326504239,0.66393965,126.51,126.48,2.14103012]
[1769326512838,35.56393965,126.53,126.5,2.14103012]
[1769326513139,0.66393965,126.53,126.5,2.14103012]
[1769326520947,0.66393965,126.53,126.49,2.14103012]
[1769326530866,0.66393965,126.53,126.49,2.14051149]
[1769326531062,35.56393965,126.54,126.51,2.14051149]
[1769326533840,35.56393965,126.54,126.5,33.76566294]
[1769326534161,0.66393965,126.54,126.5,33.76566294]
[1769326536664,0.66393965,126.54,126.5,23.72010278]
[1769326536865,0.66393965,126.53,126.5,23.72010278]
[1769326542169,0.66393965,126.53,126.5,25.86061427]
[1769326542347,0.66393965,126.53,126.5,33.76559754]
[1769326544670,0.66393965,126.53,126.5,10.04549476]
[1769326551475,0.66393965,126.53,126.5,7.90498327]
[1769326551695,0.66393965,126.51,126.47,10.04713565]
[1769326551893,0.66393965,126.51,126.48,10.04687937]
[1769326554173,0.66393965,126.51,126.49,2.14051149]
[1769326559779,0.66393965,126.52,126.49,10.04623511]
[1769326559969,0.66393965,126.52,126.5,2.14051149]
[1769326561285,0.66393965,126.53,126.5,2.14051149]
[1769326561460,0.66393965,126.54,126.52,2.14051149]
[1769326561784,0.66393965,126.54,126.51,2.14051149]
[1769326563070,0.66393965,126.54,126.52,2.14051149]
[1769326563278,0.66393965,126.56,126.52,2.14051149]
[1769326565488,0.66393965,126.56,126.53,2.14051149]
[1769326590929,0.66393965,126.56,126.53,2.13928555]
[1769326616853,0.66393965,126.56,126.52,2.13928555]
[1769326617349,0.66393965,126.56,126.5,7.90513833]
[1769326617546,0.66393965,126.56,126.52,2.13928555]
[1769326622141,0.66393965,126.56,126.54,2.13928555]
[1769326623738,0.66393965,126.57,126.54,2.13928555]
[1769326633969,0.66393965,126.57,126.53,2.13928555]
[1769326634571,0.66393965,126.57,126.54,2.13928555]
[1769326636479,0.66393965,126.57,126.53,2.13928555]
[1769326636976,0.66393965,126.57,126.54,2.13928555]
[1769326649678,0.66393965,126.57,126.52,7.90355708]
[1769326649859,0.66393965,126.57,126.54,2.13928555]
[1769326650175,0.66393965,126.57,126.53,2.13928555]
[1769326650878,0.66393965,126.57,126.53,2.13905096]
[1769326651180,0.66393965,126.57,126.52,10.04260804]
[1769326651570,0.66393965,126.57,126.53,2.13905096]
[1769326655282,0.66393965,126.56,126.52,2.13905096]
[1769326655483,0.66393965,126.56,126.51,2.13905096]
[1769326656674,0.66393965,126.56,126.51,10.04338084]
[1769326657868,0.66393965,126.56,126.52,2.13905096]
[1769326659574,0.66393965,126.56,126.53,2.13905096]
[1769326681901,0.66393965,126.56,126.53,10.04229886]
[1769326682105,0.76393965,126.58,126.55,2.13905096]
[1769326682304,0.76393965,126.58,126.56,2.13905096]
[1769326683199,0.76393965,126.58,126.55,2.13905096]
[1769326684813,0.76393965,126.58,126.54,2.13905096]
[1769326686912,0.66393965,126.57,126.54,2.13905096]
[1769326689617,0.66393965,126.57,126.53,2.13905096]
[1769326692638,0.66393965,126.57,126.54,2.13905096]
[1769326692938,0.66393965,126.57,126.53,2.13905096]
[1769326694902,0.66393965,126.57,126.54,2.13905096]
[1769326701433,0.66393965,126.57,126.53,2.13905096]
[1769326706338,0.66393965,126.57,126.54,2.13905096]
[1769326708120,0.76393965,126.58,126.55,2.13905096]
[1769326713048,0.76393965,126.58,126.55,2.13851509]
[1769326725456,0.76393965,126.58,126.54,2.13851509]
[1769326733170,0.76393965,126.58,126.55,2.13851509]
[1769326736769,0.1,126.58,126.56,2.13851509]
[1769326737147,0.76393965,126.58,126.56,2.13851509]
[1769326739173,0.76393965,126.58,126.55,2.13851509]
[1769326744678,0.76393965,126.58,126.56,2.13851509]
[1769326754886,0.76393965,126.58,126.54,7.90233167]
[1769326755087,0.76393965,126.58,126.56,2.13851509]
[1769326758590,0.76393965,126.58,126.55,2.13851509]
[1769326770914,0.76393965,126.58,126.53,7.90326404]
[1769326771087,0.76393965,126.58,126.55,2.13851509]
[1769326775022,0.76393965,126.58,126.55,2.1383074]
[1769326784410,0.76393965,126.58,126.56,2.1383074]
[1769326787629,0.76393965,126.58,126.55,2.1383074]
[1769326791828,0.76393965,126.58,126.56,2.1383074]
[1769326800922,0.76393965,126.59,126.57,2.1383074]
[1769326801255,0.1,126.6,126.58,2.1383074]
[1769326802214,0.1,126.6,126.59,2.47611882]
[1769326802414,0.1,126.61,126.59,2.47611882]
[1769326802820,0.1,126.61,126.6,2.1383074]
[1769326803631,0.55627316,126.61,126.6,2.1383074]
[1769326804216,0.55627316,126.61,126.59,2.47611882]
[1769326805637,0.55627316,126.61,126.6,2.1383074]
[1769326808151,0.1,126.61,126.6,2.1383074]
[1769326810926,0.00530078,126.61,126.6,2.1383074]
[1769326826566,0.55627316,126.62,126.6,2.1383074]
[1769326828353,0.55627316,126.62,126.59,2.1383074]
[1769326828670,0.55627316,126.62,126.57,13.53650113]
[1769326828874,0.55627316,126.62,126.57,10.37606974]
[1769326829571,0.55627316,126.62,126.58,2.1383074]
[1769326831465,0.48181301,126.61,126.57,2.1383074]
[1769326831771,0.48181301,126.61,126.56,8.23864291]
[1769326831772,0.48181301,126.6,126.56,2.1383074]
[1769326833152,0.48181301,126.6,126.58,2.1383074]
[1769326833571,0.48181301,126.6,126.57,2.1383074]
[1769326836856,0.48181301,126.6,126.57,2.13809268]
[1769326838584,0.48181301,126.6,126.54,19.55897256]
[1769326838757,0.48181301,126.6,126.56,2.13809268]
[1769326843983,0.48181301,126.6,126.55,2.63647182]
[1769326845088,0.48181301,126.6,126.56,2.13809268]
[1769326846286,0.48181301,126.6,126.56,2.63647182]
[1769326846470,0.48181301,126.6,126.57,2.13809268]
[1769326847567,0.48181301,126.6,126.56,2.63647182]
[1769326852080,0.48181301,126.6,126.56,0.49837914]
[1769326854499,0.48181301,126.6,126.56,2.63647182]
[1769326858005,0.48181301,126.6,126.56,0.49837914]
[1769326860704,0.48181301,126.6,126.56,2.63647182]
[1769326862502,0.48181301,126.6,126.56,0.49837914]
[1769326863817,0.48181301,126.6,126.56,2.63647182]
[1769326864991,0.48181301,126.6,126.56,0.49837914]
[1769326871215,0.48181301,126.6,126.56,2.63647182]
[1769326876721,0.48181301,126.6,126.56,0.49837914]
[1769326891131,0.48181301,126.6,126.56,2.63647182]
[1769326896939,0.48181301,126.6,126.56,2.63678195]
[1769326899938,0.48181301,126.6,126.57,0.50468459]
[1769326935369,0.48417158,126.59,126.56,0.50618103]
[1769326937064,0.48417158,126.59,126.55,2.64458384]
[1769326937294,0.48417158,126.59,126.56,0.50618103]
[1769326945174,2.62257439,126.6,126.56,0.50618103]
[1769326945377,0.48417158,126.6,126.56,0.50618103]
[1769326951484,0.48417158,126.59,126.56,0.50618103]
[1769326968374,0.47784726,126.58,126.55,0.47248037]
[1769326968596,0.47784726,126.58,126.55,2.61117303]
[1769326969097,0.47784726,126.58,126.55,2.13869266]
[1769326969306,0.47784726,126.58,126.56,0.47248037]
[1769326972302,2.61653992,126.59,126.56,0.47248037]
[1769326973702,0.47784726,126.59,126.56,0.47248037]
[1769327003924,2.61653992,126.59,126.56,0.47248037]
[1769327004234,0.47784726,126.59,126.56,0.47248037]
[1769327053062,10.03778466,126.6,126.56,0.47248037]
[1769327053364,10.50297239,126.6,126.56,0.47248037]
[1769327063060,0.47044915,126.59,126.56,0.47248037]
[1769327086490,16.27661529,126.59,126.56,0.47248037]
[1769327086790,0.47044915,126.59,126.56,0.47248037]
[1769327088295,16.27661529,126.59,126.56,0.47248037]
[1769327088795,0.47044915,126.59,126.56,0.47248037]
[1769327104212,18.4153619,126.59,126.56,0.47248037]
[1769327104538,0.48779195,126.58,126.56,0.47248037]
[1769327105729,2.13874661,126.59,126.56,0.47248037]
[1769327105931,2.62653856,126.59,126.56,0.47248037]
[1769327110138,18.4327047,126.59,126.56,0.47248037]
[1769327110740,2.62653856,126.59,126.56,0.47248037]
[1769327119548,0.49800303,126.58,126.56,0.47248037]
[1769327120548,0.49800303,126.58,126.55,16.3199872]
[1769327123848,0.49800303,126.58,126.56,0.51382106]
[1769327125129,0.49800303,126.59,126.56,0.51382106]
[1769327147866,18.44301853,126.59,126.56,0.51382106]
[1769327148968,16.30416917,126.59,126.56,0.51382106]
[1769327149971,0.49800303,126.59,126.56,0.51382106]
[1769327155475,0.47009303,126.59,126.56,0.51382106]
[1769327163476,16.28471526,126.6,126.56,0.51382106]
[1769327163681,18.42356462,126.6,126.56,0.51382106]
[1769327166283,2.13884936,126.59,126.56,0.51382106]
[1769327166784,18.42356462,126.6,126.56,0.51382106]
[1769327167786,0.47854912,126.59,126.56,0.51382106]
[1769327169989,18.42356462,126.6,126.56,0.51382106]
[1769327171087,17.9450155,126.6,126.56,0.51382106]
[1769327171277,0.47854912,126.59,126.56,0.51382106]
[1769327173999,18.46076682,126.6,126.56,0.51382106]
[1769327174994,0.51575132,126.59,126.56,0.51382106]
[1769327181176,2.65460068,126.59,126.56,0.51382106]
[1769327183896,0.51575132,126.59,126.56,0.51382106]
[1769327187584,16.32191746,126.59,126.56,0.51382106]
[1769327190116,0.51575132,126.58,126.56,0.51382106]
[1769327191507,8.41933576,126.58,126.56,0.51382106]
[1769327192212,10.55818512,126.58,126.55,0.48649495]
[1769327192711,0.51575132,126.57,126.54,16.29266109]
[1769327193409,2.65460068,126.57,126.54,16.29266109]
[1769327193616,2.64148035,126.57,126.54,0.48649495]
[1769327193993,18.93414144,126.57,126.54,0.48649495]
[1769327200318,0.50263099,126.56,126.54,0.48649495]
[1769327200523,2.64148035,126.56,126.54,0.48649495]
[1769327200705,0.50263099,126.56,126.54,0.48649495]
[1769327208718,2.64217926,126.56,126.54,0.48649495]
[1769327213752,2.13954827,126.56,126.54,0.48649495]
[1769327214120,18.93484035,126.57,126.54,0.48649495]
[1769327215234,16.29266109,126.57,126.54,0.48649495]
[1769327215539,53.83484035,126.58,126.54,16.29266109]
[1769327215752,18.93484035,126.58,126.55,0.4893513]
[1769327217240,0.50263099,126.57,126.55,0.4893513]
[1769327226751,2.64217926,126.57,126.55,0.4893513]
[1769327227054,18.93484035,126.57,126.55,0.4893513]
[1769327227453,18.93484035,126.57,126.54,0.49872009]
[1769327236666,16.79529208,126.57,126.54,0.49872009]
[1769327249589,0.50263099,126.57,126.54,0.49872009]
[1769327267610,2.64208613,126.57,126.54,0.49872009]
[1769327269312,0.50263099,126.57,126.54,0.49872009]
[1769327277019,2.61685145,126.58,126.54,0.49872009]
[1769327277224,0.47739631,126.58,126.54,0.49872009]
[1769327281324,2.61685145,126.58,126.54,0.49872009]
[1769327287021,0.48186305,126.57,126.54,0.49872009]
[1769327288236,2.62131819,126.58,126.54,0.49872009]
[1769327304071,0.49299457,126.57,126.54,0.49872009]
[1769327306561,2.13945514,126.57,126.54,0.49872009]
[1769327306769,0.49299457,126.56,126.54,0.49872009]
[1769327310578,0.49299457,126.56,126.53,24.19556628]
[1769327310874,2.63244971,126.56,126.53,0.4810886]
[1769327317781,0.50045865,126.55,126.52,24.20361034]
[1769327318487,0.50045865,126.54,126.51,0.48725792]
[1769327318785,0.50045865,126.54,126.51,8.38764719]
[1769327319164,0.50045865,126.54,126.51,10.52710233]
[1769327320087,0.50045865,126.54,126.51,8.38764719]
[1769327324985,0.50045865,126.54,126.51,10.52771861]
[1769327325992,0.50045865,126.54,126.51,8.38764719]
[1769327338507,0.50045865,126.54,126.51,7.90038927]
[1769327338709,0.50045865,126.54,126.51,8.38764719]
[1769327342013,2.64053007,126.55,126.52,0.48725792]
[1769327342324,0.50045865,126.54,126.52,0.48725792]
[1769327343914,2.59820026,126.55,126.52,0.48725792]
[1769327344507,0.45812884,126.54,126.52,0.48725792]
[1769327352823,2.59820026,126.54,126.51,0.49606669]
[1769327353125,2.59820026,126.53,126.5,0.49568961]
[1769327360134,0.45812884,126.53,126.5,0.49568961]
[1769327364748,0.45812884,126.53,126.5,2.63576103]
[1769327372354,0.45812884,126.53,126.51,0.49568961]
[1769327384585,0.45812884,126.53,126.5,2.6088936]
[1769327384864,0.45812884,126.53,126.5,0.46882218]
[1769327385873,0.45812884,126.53,126.49,0.46882218]
[1769327386378,0.48428762,126.52,126.49,0.46882218]
[1769327386951,0.48428762,126.51,126.47,12.65623689]
[1769327387151,0.48428762,126.51,126.47,2.60942355]
[1769327392770,2.62488899,126.51,126.46,10.71234259]
[1769327392978,0.48428762,126.5,126.46,2.80942355]
[1769327393181,0.48428762,126.5,126.46,0.66882218]
[1769327393182,0.48428762,126.49,126.46,0.66882218]
[1769327397080,0.48428762,126.48,126.46,0.66882218]
[1769327400684,0.48428762,126.49,126.46,2.80942355]
[1769327402089,0.48428762,126.49,126.47,0.46882218]
[1769327402388,0.48428762,126.49,126.46,2.80942355]
[1769327408492,35.35785297,126.5,126.47,2.60837249]
[1769327409092,0.45785297,126.49,126.47,2.60837249]
[1769327409270,0.45785297,126.49,126.47,2.14060137]
[1769327412193,0.45785297,126.49,126.46,2.80837249]
[1769327412788,0.45785297,126.49,126.47,0.46777112]
[1769327413789,34.9,126.5,126.47,2.14060137]
[1769327413971,34.9,126.5,126.48,2.6422996]
[1769327415501,4.12542505,126.54,126.5,0.50169823]
[1769327415671,4.12542505,126.54,126.51,2.6422996]
[1769327416007,10.04231959,126.56,126.51,2.6422996]
[1769327419391,10.04231959,126.56,126.52,2.14060137]
[1769327420175,0.45777048,126.55,126.52,2.14060137]
[1769327420795,0.45777048,126.54,126.51,2.14060137]
[1769327420973,0.45777048,126.53,126.51,2.14060137]
[1769327421376,0.45777048,126.53,126.5,2.14060137]
[1769327421907,0.45777048,126.53,126.5,2.6422996]
[1769327427207,0.45777048,126.53,126.5,0.50169823]
[1769327430606,0.45777048,126.53,126.51,2.14060137]
[1769327431203,0.45777048,126.53,126.5,2.6422996]
[1769327437917,0.45777048,126.53,126.5,2.14060137]
[1769327438591,2.62854742,126.52,126.48,0.50069374]
[1769327438799,0.48794605,126.51,126.48,0.50069374]
[1769327439115,0.48794605,126.51,126.47,2.64129511]
[1769327439416,0.48794605,126.51,126.47,0.50069374]
[1769327439586,0.48794605,126.5,126.47,0.50069374]
[1769327440099,0.48794605,126.5,126.46,10.74888099]
[1769327440307,0.48794605,126.49,126.46,0.70069374]
[1769327441917,0.48794605,126.49,126.46,0.2]
[1769327443610,0.48794605,126.48,126.44,2.84129511]
[1769327443809,0.48794605,126.48,126.45,2.64129511]
[1769327444011,0.48794605,126.48,126.46,0.50069374]
[1769327444309,0.48794605,126.48,126.45,2.64129511]
[1769327444734,0.48794605,126.48,126.45,0.50069374]
[1769327449229,0.48794605,126.48,126.44,0.70069374]
[1769327449523,0.48794605,126.48,126.44,2.84288192]
[1769327453433,0.48794605,126.48,126.44,0.70069374]
[1769327459132,0.48794605,126.48,126.45,0.50069374]
[1769327459438,0.48794605,126.48,126.44,0.70069374]
[1769327462118,0.48794605,126.47,126.44,0.70069374]
[1769327475846,34.47668501,126.48,126.45,0.47875939]
[1769327497170,33.99628024,126.47,126.45,0.47875939]
[1769327502480,34.4728785,126.47,126.45,0.47875939]
[1769327513894,34.4728785,126.47,126.44,2.82080386]
[1769327515194,34.4728785,126.47,126.44,0.67823823]
[1769327516390,7.90580753,126.49,126.44,0.67823823]
[1769327516391,125.96,126.51,126.44,0.67823823]
[1769327516693,2.14256563,126.48,126.44,0.67823823]
[1769327517202,2.14256563,126.48,126.44,0.2]
[1769327518395,0.46326516,126.47,126.44,0.2]
[1769327519571,0.46326516,126.47,126.44,0.67823823]
[1769327534114,0.46326516,126.47,126.44,0.63823823]
[1769327536011,0.46326516,126.47,126.44,0.16]
[1769327538119,0.46281023,126.46,126.44,0.16]
[1769327548223,0.4626125,126.47,126.44,0.6593878]
[1769327548414,7.3,126.48,126.45,0.4993878]
[1769327548625,7.3,126.48,126.46,0.4993878]
[1769327548805,7.3,126.48,126.47,0.4993878]
[1769327549119,6.72696946,126.5,126.47,0.4993878]
[1769327550020,2.14256563,126.49,126.47,0.4993878]
[1769327550713,2.14256563,126.49,126.47,0.28841397]